[Event "*** SCC Grand Prix: Titled Tuesday Blitz"]
[Site "Chess.com"]
[Date "2020.08.25"]
[Round "3"]
[White "alexsergeyev"]
[Black "Borsuk_Konstantin"]
[Result "0-1"]
[WhiteElo "2346"]
[BlackElo "2544"]
[TimeControl "180+1"]
[EndTime "10:31:03 PDT"]
[Termination "Borsuk_Konstantin won on time"]

1. d4 {[%clk 0:03:00.9]} 1... Nf6 {[%clk 0:02:59.7]} 2. c4 {[%clk 0:03:00.5]}
2... e6 {[%clk 0:03:00.1]} 3. Nf3 {[%clk 0:02:59.8]} 3... b6 {[%clk 0:03:00]} 4.
g3 {[%clk 0:02:58.8]} 4... Bb7 {[%clk 0:02:58.4]} 5. Bg2 {[%clk 0:02:58.3]} 5...
Be7 {[%clk 0:02:59]} 6. O-O {[%clk 0:02:57.9]} 6... O-O {[%clk 0:02:59.5]} 7.
Nc3 {[%clk 0:02:57]} 7... Ne4 {[%clk 0:02:59.9]} 8. Qc2 {[%clk 0:02:54.3]} 8...
Nxc3 {[%clk 0:02:59.5]} 9. Qxc3 {[%clk 0:02:53.9]} 9... a5 {[%clk 0:02:59.4]}
10. b3 {[%clk 0:02:51.7]} 10... d6 {[%clk 0:02:52.8]} 11. Bb2 {[%clk 0:02:50]}
11... Nd7 {[%clk 0:02:52.5]} 12. Rfe1 {[%clk 0:02:41.5]} 12... Qc8 {[%clk
0:02:49.3]} 13. Qc2 {[%clk 0:02:34.3]} 13... f5 {[%clk 0:02:41.7]} 14. d5 {[%clk
0:02:25.4]} 14... e5 {[%clk 0:02:33.6]} 15. Bh3 {[%clk 0:02:22.6]} 15... g6
{[%clk 0:02:30.1]} 16. e4 {[%clk 0:02:19.5]} 16... f4 {[%clk 0:02:12.8]} 17.
Bxe5 {[%clk 0:02:07.1]} 17... Nxe5 {[%clk 0:02:08.3]} 18. Bxc8 {[%clk
0:02:02.5]} 18... Nxf3+ {[%clk 0:02:07.5]} 19. Kg2 {[%clk 0:02:01.1]} 19...
Nxe1+ {[%clk 0:02:06.1]} 20. Rxe1 {[%clk 0:01:59.6]} 20... f3+ {[%clk
0:01:38.2]} 21. Kg1 {[%clk 0:01:57]} 21... Raxc8 {[%clk 0:01:23.3]} 22. Qd3
{[%clk 0:01:49.9]} 22... Rf7 {[%clk 0:01:00.3]} 23. h4 {[%clk 0:01:34.2]} 23...
Rcf8 {[%clk 0:00:55.1]} 24. h5 {[%clk 0:01:32]} 24... gxh5 {[%clk 0:00:52.2]}
25. e5 {[%clk 0:01:31.6]} 25... dxe5 {[%clk 0:00:50.4]} 26. Rxe5 {[%clk
0:01:30.2]} 26... Rg7 {[%clk 0:00:29.5]} 27. Rxh5 {[%clk 0:01:24.8]} 27... Bc5
{[%clk 0:00:28.8]} 28. Rf5 {[%clk 0:00:56.2]} 28... Bc8 {[%clk 0:00:21.2]} 29.
Rxf8+ {[%clk 0:00:53.9]} 29... Kxf8 {[%clk 0:00:19.8]} 30. Qxf3+ {[%clk
0:00:51.4]} 30... Rf7 {[%clk 0:00:20.3]} 31. Qh5 {[%clk 0:00:49]} 31... Bxf2+
{[%clk 0:00:14.3]} 32. Kg2 {[%clk 0:00:47.7]} 32... Bc5 {[%clk 0:00:12.8]} 33.
Qh6+ {[%clk 0:00:43.8]} 33... Ke8 {[%clk 0:00:12.6]} 34. Qc6+ {[%clk 0:00:36.1]}
34... Bd7 {[%clk 0:00:12.6]} 35. Qa8+ {[%clk 0:00:35.4]} 35... Ke7 {[%clk
0:00:12.6]} 36. Qg8 {[%clk 0:00:33.5]} 36... Bd6 {[%clk 0:00:12.4]} 37. g4
{[%clk 0:00:30.3]} 37... Be5 {[%clk 0:00:11]} 38. g5 {[%clk 0:00:23.4]} 38...
Rg7 {[%clk 0:00:10.4]} 39. Qa8 {[%clk 0:00:15]} 39... Rxg5+ {[%clk 0:00:10.3]}
40. Kf3 {[%clk 0:00:15.1]} 40... Rg7 {[%clk 0:00:09.4]} 41. c5 {[%clk
0:00:12.9]} 41... bxc5 {[%clk 0:00:09.1]} 42. Qxa5 {[%clk 0:00:12]} 42... Bd6
{[%clk 0:00:09.7]} 43. Qe1+ {[%clk 0:00:10.5]} 43... Kd8 {[%clk 0:00:08.3]} 44.
Qa5 {[%clk 0:00:09.5]} 44... h5 {[%clk 0:00:07.9]} 45. Qa8+ {[%clk 0:00:08.4]}
45... Bc8 {[%clk 0:00:08.2]} 46. Qa4 {[%clk 0:00:06]} 46... Rg4 {[%clk
0:00:08.2]} 47. Qb5 {[%clk 0:00:03.8]} 47... h4 {[%clk 0:00:08.4]} 48. Qd3
{[%clk 0:00:02.1]} 48... Rg3+ {[%clk 0:00:08.4]} 0-1

[Event "*** SCC Grand Prix: Titled Tuesday Blitz"]
[Site "Chess.com"]
[Date "2020.08.25"]
[Round "3"]
[White "FontVella8"]
[Black "cassoulet"]
[Result "1/2-1/2"]
[WhiteElo "2471"]
[BlackElo "2709"]
[TimeControl "180+1"]
[EndTime "10:31:04 PDT"]
[Termination "Game drawn - insufficient material"]

1. e4 {[%clk 0:03:00.4]} 1... c5 {[%clk 0:02:59.2]} 2. Nf3 {[%clk 0:03:00.3]}
2... Nc6 {[%clk 0:02:59.7]} 3. d4 {[%clk 0:03:00.2]} 3... cxd4 {[%clk
0:03:00.3]} 4. Nxd4 {[%clk 0:03:00.8]} 4... Nf6 {[%clk 0:03:00.7]} 5. Nc3 {[%clk
0:03:01.1]} 5... d6 {[%clk 0:03:00.9]} 6. Bg5 {[%clk 0:02:56.7]} 6... e6 {[%clk
0:02:57.8]} 7. Qd2 {[%clk 0:02:55.7]} 7... a6 {[%clk 0:02:57.3]} 8. O-O-O {[%clk
0:02:51.1]} 8... Bd7 {[%clk 0:02:57.2]} 9. f4 {[%clk 0:02:45.2]} 9... h6 {[%clk
0:02:52.6]} 10. Bxf6 {[%clk 0:02:33.1]} 10... gxf6 {[%clk 0:02:53.5]} 11. f5
{[%clk 0:02:29.4]} 11... h5 {[%clk 0:02:47.9]} 12. Kb1 {[%clk 0:02:24]} 12... b5
{[%clk 0:02:35.4]} 13. h4 {[%clk 0:02:12.1]} 13... Qb6 {[%clk 0:02:30.8]} 14.
Nce2 {[%clk 0:01:55.4]} 14... Bh6 {[%clk 0:02:13.4]} 15. Qe1 {[%clk 0:01:50.5]}
15... O-O-O {[%clk 0:01:54.9]} 16. Nxc6 {[%clk 0:01:38.6]} 16... Bxc6 {[%clk
0:01:54.6]} 17. Nd4 {[%clk 0:01:28.4]} 17... Bd7 {[%clk 0:01:44.8]} 18. Rh3
{[%clk 0:01:15.5]} 18... Kb8 {[%clk 0:01:34.3]} 19. Be2 {[%clk 0:01:13]} 19...
Bf4 {[%clk 0:01:32.3]} 20. Rb3 {[%clk 0:00:43.8]} 20... Be5 {[%clk 0:01:23.3]}
21. c3 {[%clk 0:00:42.4]} 21... Qa5 {[%clk 0:00:52.9]} 22. Qf2 {[%clk
0:00:35.9]} 22... Kc7 {[%clk 0:00:40.2]} 23. Rb4 {[%clk 0:00:17.2]} 23... Rb8
{[%clk 0:00:38.5]} 24. Nf3 {[%clk 0:00:12.3]} 24... Qb6 {[%clk 0:00:37.4]} 25.
Qxb6+ {[%clk 0:00:09.2]} 25... Rxb6 {[%clk 0:00:38.3]} 26. Nxe5 {[%clk
0:00:09.7]} 26... fxe5 {[%clk 0:00:37.8]} 27. fxe6 {[%clk 0:00:08.8]} 27... Bxe6
{[%clk 0:00:33.6]} 28. c4 {[%clk 0:00:07.9]} 28... bxc4 {[%clk 0:00:32.6]} 29.
Rxb6 {[%clk 0:00:08.1]} 29... Kxb6 {[%clk 0:00:33.5]} 30. Rxd6+ {[%clk
0:00:08.4]} 30... Kb7 {[%clk 0:00:32]} 31. Kc2 {[%clk 0:00:07.7]} 31... Rg8
{[%clk 0:00:32]} 32. Bf3 {[%clk 0:00:06.9]} 32... Bg4 {[%clk 0:00:24.6]} 33. Rf6
{[%clk 0:00:04.5]} 33... Bxf3 {[%clk 0:00:24.1]} 34. gxf3 {[%clk 0:00:05.4]}
34... Rg2+ {[%clk 0:00:22.4]} 35. Kc3 {[%clk 0:00:05.7]} 35... Rh2 {[%clk
0:00:23.3]} 36. Rxf7+ {[%clk 0:00:05.6]} 36... Kb6 {[%clk 0:00:23.9]} 37. Rf5
{[%clk 0:00:05.9]} 37... Rxh4 {[%clk 0:00:23.2]} 38. Rxe5 {[%clk 0:00:06.4]}
38... Rh3 {[%clk 0:00:24.1]} 39. Rf5 {[%clk 0:00:05.4]} 39... h4 {[%clk
0:00:24.3]} 40. Kxc4 {[%clk 0:00:05.8]} 40... Rh2 {[%clk 0:00:24.4]} 41. Rf6+
{[%clk 0:00:05.7]} 41... Ka7 {[%clk 0:00:23.5]} 42. Kc3 {[%clk 0:00:05.2]} 42...
h3 {[%clk 0:00:23.3]} 43. f4 {[%clk 0:00:05.4]} 43... Rh1 {[%clk 0:00:22]} 44.
Rh6 {[%clk 0:00:05.2]} 44... h2 {[%clk 0:00:22.4]} 45. Kb3 {[%clk 0:00:04.8]}
45... Kb7 {[%clk 0:00:22.2]} 46. a4 {[%clk 0:00:04.6]} 46... a5 {[%clk
0:00:21.3]} 47. e5 {[%clk 0:00:04.7]} 47... Rf1 {[%clk 0:00:20.6]} 48. Rxh2
{[%clk 0:00:04.7]} 48... Rf3+ {[%clk 0:00:21.1]} 49. Ka2 {[%clk 0:00:04.4]}
49... Rxf4 {[%clk 0:00:22]} 50. b3 {[%clk 0:00:04.2]} 50... Re4 {[%clk
0:00:22.2]} 51. Rh5 {[%clk 0:00:04.2]} 51... Kb6 {[%clk 0:00:22.1]} 52. Kb2
{[%clk 0:00:04.5]} 52... Kc5 {[%clk 0:00:22.4]} 53. Kc3 {[%clk 0:00:04.9]} 53...
Re3+ {[%clk 0:00:22.3]} 54. Kc2 {[%clk 0:00:05]} 54... Kb4 {[%clk 0:00:22.4]}
55. Rh4+ {[%clk 0:00:03.6]} 55... Ka3 {[%clk 0:00:22.5]} 56. Rc4 {[%clk
0:00:01.7]} 56... Rxe5 {[%clk 0:00:21]} 57. Kc3 {[%clk 0:00:01.6]} 57... Re3+
{[%clk 0:00:21]} 58. Kc2 {[%clk 0:00:01.5]} 58... Rxb3 {[%clk 0:00:21.9]} 59.
Rc3 {[%clk 0:00:01.9]} 59... Rxc3+ {[%clk 0:00:21.5]} 60. Kxc3 {[%clk
0:00:02.8]} 60... Kxa4 {[%clk 0:00:22.4]} 61. Kb2 {[%clk 0:00:03.5]} 61... Kb4
{[%clk 0:00:22.9]} 62. Ka2 {[%clk 0:00:04.4]} 62... Kc3 {[%clk 0:00:23.2]} 63.
Ka3 {[%clk 0:00:04.6]} 63... a4 {[%clk 0:00:23.7]} 64. Kxa4 {[%clk 0:00:05.5]}
1/2-1/2

[Event "*** SCC Grand Prix: Titled Tuesday Blitz"]
[Site "Chess.com"]
[Date "2020.08.25"]
[Round "3"]
[White "ketster"]
[Black "joppie2"]
[Result "0-1"]
[WhiteElo "2448"]
[BlackElo "2870"]
[TimeControl "180+1"]
[EndTime "10:31:05 PDT"]
[Termination "joppie2 won by resignation"]

1. d4 {[%clk 0:03:00.9]} 1... Nf6 {[%clk 0:02:12.8]} 2. c4 {[%clk 0:03:00.2]}
2... e6 {[%clk 0:02:03.8]} 3. g3 {[%clk 0:02:58.2]} 3... d5 {[%clk 0:02:00.8]}
4. Bg2 {[%clk 0:02:57.7]} 4... Bb4+ {[%clk 0:01:57.5]} 5. Bd2 {[%clk 0:02:57.3]}
5... Be7 {[%clk 0:01:57.6]} 6. Nf3 {[%clk 0:02:57]} 6... O-O {[%clk 0:01:58.1]}
7. O-O {[%clk 0:02:56.9]} 7... c6 {[%clk 0:01:57.1]} 8. Qc2 {[%clk 0:02:57]}
8... b6 {[%clk 0:01:56.3]} 9. Ne5 {[%clk 0:02:54.4]} 9... Bb7 {[%clk 0:01:56.4]}
10. a3 {[%clk 0:02:47.4]} 10... Nbd7 {[%clk 0:01:56.6]} 11. cxd5 {[%clk
0:02:37.5]} 11... cxd5 {[%clk 0:01:55]} 12. Nc6 {[%clk 0:02:36]} 12... Bxc6
{[%clk 0:01:50.7]} 13. Qxc6 {[%clk 0:02:36.1]} 13... Qc8 {[%clk 0:01:49.9]} 14.
Qa4 {[%clk 0:02:32.8]} 14... a6 {[%clk 0:01:49.4]} 15. Rc1 {[%clk 0:02:32.1]}
15... Qb7 {[%clk 0:01:48.1]} 16. Bf4 {[%clk 0:02:27.6]} 16... Rfc8 {[%clk
0:01:47]} 17. Nc3 {[%clk 0:02:26.3]} 17... b5 {[%clk 0:01:47.5]} 18. Qb3 {[%clk
0:02:20.6]} 18... Nb6 {[%clk 0:01:46.1]} 19. a4 {[%clk 0:02:11.7]} 19... b4
{[%clk 0:01:45.9]} 20. a5 {[%clk 0:02:00.4]} 20... Nc4 {[%clk 0:01:42.9]} 21.
Nd1 {[%clk 0:01:49.8]} 21... Qb5 {[%clk 0:01:38.7]} 22. Bf1 {[%clk 0:01:36.9]}
22... Nxa5 {[%clk 0:01:14.2]} 23. Rxc8+ {[%clk 0:01:29.7]} 23... Rxc8 {[%clk
0:01:15.1]} 24. Qa2 {[%clk 0:01:29.3]} 24... Bd8 {[%clk 0:01:09.7]} 25. e4
{[%clk 0:01:25.8]} 25... Qb7 {[%clk 0:01:07.6]} 26. e5 {[%clk 0:01:20.5]} 26...
Nd7 {[%clk 0:01:00.4]} 27. Qa4 {[%clk 0:01:17.6]} 27... h6 {[%clk 0:00:52.9]}
28. Bd2 {[%clk 0:01:16.1]} 28... Nc4 {[%clk 0:00:49.3]} 29. Qxb4 {[%clk
0:01:07.4]} 29... Qc6 {[%clk 0:00:45.1]} 30. b3 {[%clk 0:00:54.4]} 30... a5
{[%clk 0:00:34.2]} 31. Qc3 {[%clk 0:00:51]} 31... Nxd2 {[%clk 0:00:34.5]} 32.
Qxd2 {[%clk 0:00:51]} 32... Qb6 {[%clk 0:00:35.4]} 33. Qe3 {[%clk 0:00:32.8]}
33... Bg5 {[%clk 0:00:33.2]} 34. f4 {[%clk 0:00:32.1]} 34... Be7 {[%clk
0:00:33.6]} 35. Nf2 {[%clk 0:00:27]} 35... Bb4 {[%clk 0:00:31.8]} 36. Rc1 {[%clk
0:00:24.4]} 36... Rxc1 {[%clk 0:00:30.6]} 37. Qxc1 {[%clk 0:00:24.8]} 37... Qxd4
{[%clk 0:00:31.5]} 38. Kg2 {[%clk 0:00:24.1]} 38... Nc5 {[%clk 0:00:31]} 39. Qc2
{[%clk 0:00:22.8]} 39... g6 {[%clk 0:00:26.9]} 40. Bb5 {[%clk 0:00:21.8]} 40...
Kg7 {[%clk 0:00:25.9]} 41. Bf1 {[%clk 0:00:20]} 41... h5 {[%clk 0:00:25.5]} 42.
Bb5 {[%clk 0:00:19.9]} 42... Kf8 {[%clk 0:00:21.4]} 43. Bf1 {[%clk 0:00:20]}
43... Qc3 {[%clk 0:00:21.5]} 44. Qd1 {[%clk 0:00:16.2]} 44... Qxb3 {[%clk
0:00:20]} 45. Qd4 {[%clk 0:00:16.6]} 45... Qc3 {[%clk 0:00:19.9]} 46. Qd1 {[%clk
0:00:16.5]} 46... Qd2 {[%clk 0:00:19.1]} 47. Qb1 {[%clk 0:00:13]} 47... a4
{[%clk 0:00:17.6]} 48. Bb5 {[%clk 0:00:08.8]} 48... Ne4 {[%clk 0:00:15.6]} 49.
Qf1 {[%clk 0:00:07.4]} 49... Nxf2 {[%clk 0:00:15.2]} 50. Qxf2 {[%clk 0:00:07]}
50... Qxf2+ {[%clk 0:00:15.5]} 51. Kxf2 {[%clk 0:00:07.7]} 51... a3 {[%clk
0:00:16.4]} 52. Bc4 {[%clk 0:00:07.8]} 52... dxc4 {[%clk 0:00:17.3]} 0-1

[Event "*** SCC Grand Prix: Titled Tuesday Blitz"]
[Site "Chess.com"]
[Date "2020.08.25"]
[Round "3"]
[White "rynos0411"]
[Black "Carnivoras"]
[Result "1-0"]
[WhiteElo "2427"]
[BlackElo "2653"]
[TimeControl "180+1"]
[EndTime "10:31:05 PDT"]
[Termination "rynos0411 won by resignation"]

1. e4 {[%clk 0:03:00.9]} 1... e5 {[%clk 0:02:57.4]} 2. Nf3 {[%clk 0:02:58.6]}
2... Nc6 {[%clk 0:02:56.2]} 3. Bb5 {[%clk 0:02:56.9]} 3... Nf6 {[%clk
0:02:53.7]} 4. O-O {[%clk 0:02:55.1]} 4... d6 {[%clk 0:02:53.4]} 5. Re1 {[%clk
0:02:52.6]} 5... Be7 {[%clk 0:02:53.2]} 6. c3 {[%clk 0:02:52.2]} 6... O-O {[%clk
0:02:52.7]} 7. h3 {[%clk 0:02:52.3]} 7... a6 {[%clk 0:02:51.9]} 8. Ba4 {[%clk
0:02:51.4]} 8... b5 {[%clk 0:02:52.2]} 9. Bb3 {[%clk 0:02:51]} 9... Na5 {[%clk
0:02:52.2]} 10. Bc2 {[%clk 0:02:51]} 10... c5 {[%clk 0:02:51.1]} 11. d4 {[%clk
0:02:50.3]} 11... Qc7 {[%clk 0:02:40.9]} 12. Nbd2 {[%clk 0:02:49.5]} 12... Bd7
{[%clk 0:02:31.8]} 13. Nf1 {[%clk 0:02:47.3]} 13... Nc4 {[%clk 0:02:31.5]} 14.
b3 {[%clk 0:02:44]} 14... Nb6 {[%clk 0:02:30.9]} 15. Ne3 {[%clk 0:02:41.5]}
15... Rfc8 {[%clk 0:02:27.6]} 16. Bb2 {[%clk 0:02:41.6]} 16... Bc6 {[%clk
0:02:12.2]} 17. dxe5 {[%clk 0:02:25.9]} 17... dxe5 {[%clk 0:02:09.1]} 18. Nf5
{[%clk 0:02:24.2]} 18... c4 {[%clk 0:01:53.6]} 19. Qe2 {[%clk 0:02:21.5]} 19...
Bf8 {[%clk 0:01:42.5]} 20. Rad1 {[%clk 0:02:18.1]} 20... Rd8 {[%clk 0:01:42.5]}
21. Bc1 {[%clk 0:02:10.5]} 21... Rxd1 {[%clk 0:01:23.5]} 22. Rxd1 {[%clk
0:02:09.9]} 22... Rd8 {[%clk 0:01:23.4]} 23. Rxd8 {[%clk 0:02:05.2]} 23... Qxd8
{[%clk 0:01:23.2]} 24. Bg5 {[%clk 0:02:05.9]} 24... g6 {[%clk 0:01:01.1]} 25.
Nxe5 {[%clk 0:01:50.4]} 25... Ba8 {[%clk 0:00:55]} 26. Ng4 {[%clk 0:01:47.8]}
26... Nbd7 {[%clk 0:00:40.7]} 27. Nd4 {[%clk 0:01:37.4]} 27... cxb3 {[%clk
0:00:33.9]} 28. axb3 {[%clk 0:01:36.7]} 28... Be7 {[%clk 0:00:30.7]} 29. Nxf6+
{[%clk 0:01:17.2]} 29... Bxf6 {[%clk 0:00:30.1]} 30. Be3 {[%clk 0:01:07.3]}
30... Qc8 {[%clk 0:00:26.4]} 31. Qd2 {[%clk 0:01:04]} 31... Nc5 {[%clk
0:00:24.2]} 32. f3 {[%clk 0:01:04.2]} 32... Bb7 {[%clk 0:00:17.3]} 33. Ne2
{[%clk 0:01:01.5]} 33... Ne6 {[%clk 0:00:16.8]} 34. Nd4 {[%clk 0:00:59.3]} 34...
Nc5 {[%clk 0:00:16.7]} 35. Ne2 {[%clk 0:00:48.9]} 35... Qc6 {[%clk 0:00:16.1]}
36. Bd4 {[%clk 0:00:46.6]} 36... Nd7 {[%clk 0:00:12.6]} 37. Bxf6 {[%clk
0:00:42.9]} 37... Nxf6 {[%clk 0:00:13.5]} 38. Nd4 {[%clk 0:00:43.2]} 38... Qb6
{[%clk 0:00:12.7]} 39. Kh2 {[%clk 0:00:34.7]} 39... Qd6+ {[%clk 0:00:12.3]} 40.
g3 {[%clk 0:00:33.6]} 40... Nd7 {[%clk 0:00:11.7]} 41. Qe3 {[%clk 0:00:31.6]}
41... Nc5 {[%clk 0:00:11.6]} 42. Ne2 {[%clk 0:00:25.9]} 42... Ne6 {[%clk
0:00:11.2]} 43. f4 {[%clk 0:00:25.5]} 43... Qa3 {[%clk 0:00:10.9]} 44. f5 {[%clk
0:00:24.3]} 44... Nc5 {[%clk 0:00:10.8]} 45. f6 {[%clk 0:00:22.7]} 45... Ne6
{[%clk 0:00:10.2]} 46. Nd4 {[%clk 0:00:22.2]} 46... Qc5 {[%clk 0:00:06.7]} 47.
Qd2 {[%clk 0:00:17.8]} 47... Qc8 {[%clk 0:00:02.4]} 48. Nxe6 {[%clk 0:00:17]}
48... fxe6 {[%clk 0:00:03.3]} 49. Qd6 {[%clk 0:00:13.9]} 49... Qe8 {[%clk
0:00:02.2]} 50. e5 {[%clk 0:00:12.7]} 50... h5 {[%clk 0:00:02.2]} 51. c4 {[%clk
0:00:08.7]} 51... Qf7 {[%clk 0:00:03.1]} 52. c5 {[%clk 0:00:08.6]} 52... Bd5
{[%clk 0:00:03.2]} 53. c6 {[%clk 0:00:08.4]} 53... Kh7 {[%clk 0:00:03.5]} 54. c7
{[%clk 0:00:08.5]} 54... Bb7 {[%clk 0:00:04.2]} 55. Be4 {[%clk 0:00:08.1]} 55...
Kh6 {[%clk 0:00:04.1]} 56. Bxb7 {[%clk 0:00:08.1]} 1-0

[Event "*** SCC Grand Prix: Titled Tuesday Blitz"]
[Site "Chess.com"]
[Date "2020.08.25"]
[Round "3"]
[White "MoreChessJulia"]
[Black "LaPorfia"]
[Result "1-0"]
[WhiteElo "1886"]
[BlackElo "2228"]
[TimeControl "180+1"]
[EndTime "10:31:06 PDT"]
[Termination "MoreChessJulia won by checkmate"]

1. d4 {[%clk 0:03:00.2]} 1... Nf6 {[%clk 0:02:59.4]} 2. c4 {[%clk 0:02:59]} 2...
e6 {[%clk 0:02:58.8]} 3. Nf3 {[%clk 0:02:52.5]} 3... d5 {[%clk 0:02:58.1]} 4. g3
{[%clk 0:02:51.5]} 4... Nbd7 {[%clk 0:02:57.5]} 5. Bg2 {[%clk 0:02:50.8]} 5...
c6 {[%clk 0:02:56.9]} 6. b3 {[%clk 0:02:49.3]} 6... Bd6 {[%clk 0:02:56.1]} 7.
Bb2 {[%clk 0:02:48.5]} 7... O-O {[%clk 0:02:55.3]} 8. Nbd2 {[%clk 0:02:47.8]}
8... Re8 {[%clk 0:02:54.3]} 9. Ne5 {[%clk 0:02:47.1]} 9... Bxe5 {[%clk
0:02:28.1]} 10. dxe5 {[%clk 0:02:46]} 10... Ng4 {[%clk 0:02:26.9]} 11. Nf3
{[%clk 0:02:43.4]} 11... Qa5+ {[%clk 0:02:25.9]} 12. Kf1 {[%clk 0:02:29.5]}
12... dxc4 {[%clk 0:02:24]} 13. Qd4 {[%clk 0:02:26.8]} 13... Nh6 {[%clk
0:02:08.4]} 14. Qxc4 {[%clk 0:02:23.5]} 14... Nf5 {[%clk 0:01:47.3]} 15. h4
{[%clk 0:02:02.2]} 15... Ne7 {[%clk 0:01:46.4]} 16. Qf4 {[%clk 0:01:54.3]} 16...
Nd5 {[%clk 0:01:42.3]} 17. Qg4 {[%clk 0:01:47.5]} 17... Qb4 {[%clk 0:01:32.6]}
18. e4 {[%clk 0:01:42.4]} 18... Ne7 {[%clk 0:01:26.1]} 19. Ng5 {[%clk
0:01:37.3]} 19... Ng6 {[%clk 0:01:20.9]} 20. f4 {[%clk 0:01:33.6]} 20... b6
{[%clk 0:01:17.4]} 21. h5 {[%clk 0:01:31.9]} 21... Ngf8 {[%clk 0:01:08.7]} 22.
h6 {[%clk 0:01:30.3]} 22... g6 {[%clk 0:01:04.2]} 23. Kg1 {[%clk 0:01:25.5]}
23... Nc5 {[%clk 0:00:48.4]} 24. Kh2 {[%clk 0:01:23.1]} 24... Nd3 {[%clk
0:00:48.2]} 25. Rab1 {[%clk 0:01:14.9]} 25... Nf2 {[%clk 0:00:47.7]} 26. Qh4
{[%clk 0:01:08.2]} 26... Nxh1 {[%clk 0:00:46]} 27. Kxh1 {[%clk 0:01:07.2]} 27...
Qe7 {[%clk 0:00:45.9]} 28. Rf1 {[%clk 0:00:59.3]} 28... Ba6 {[%clk 0:00:44.5]}
29. Rf2 {[%clk 0:00:57.2]} 29... Rad8 {[%clk 0:00:42.7]} 30. f5 {[%clk
0:00:50.9]} 30... Rd1+ {[%clk 0:00:32.8]} 31. Kh2 {[%clk 0:00:49.3]} 31... Red8
{[%clk 0:00:19.6]} 32. fxg6 {[%clk 0:00:47.5]} 32... Nxg6 {[%clk 0:00:18.2]} 33.
Qh5 {[%clk 0:00:40.5]} 33... R1d2 {[%clk 0:00:18]} 34. Rxf7 {[%clk 0:00:38.3]}
34... Qxf7 {[%clk 0:00:16.2]} 35. Nxf7 {[%clk 0:00:38]} 35... Kxf7 {[%clk
0:00:17.1]} 36. Qf3+ {[%clk 0:00:34.7]} 36... Ke7 {[%clk 0:00:17.4]} 37. Ba3+
{[%clk 0:00:34.4]} 37... Kd7 {[%clk 0:00:17.6]} 38. Qf7+ {[%clk 0:00:32.8]}
38... Kc8 {[%clk 0:00:17.5]} 39. Qxe6+ {[%clk 0:00:31.8]} 39... Kb7 {[%clk
0:00:16.2]} 40. Bd6 {[%clk 0:00:31.1]} 40... Bf1 {[%clk 0:00:09.5]} 41. Qf7+
{[%clk 0:00:30.6]} 41... Ka6 {[%clk 0:00:09.8]} 42. Qxf1+ {[%clk 0:00:29.9]}
42... b5 {[%clk 0:00:07.3]} 43. Qf7 {[%clk 0:00:27]} 43... R2xd6 {[%clk
0:00:05.9]} 44. exd6 {[%clk 0:00:26.1]} 44... Rxd6 {[%clk 0:00:06.6]} 45. Qxh7
{[%clk 0:00:23.6]} 45... Ne5 {[%clk 0:00:07.2]} 46. Qg7 {[%clk 0:00:18.4]} 46...
Rxh6+ {[%clk 0:00:07.2]} 47. Bh3 {[%clk 0:00:15.7]} 47... Rh5 {[%clk 0:00:04.4]}
48. Qc7 {[%clk 0:00:11.4]} 48... Rh6 {[%clk 0:00:02.9]} 49. Kg2 {[%clk
0:00:07.4]} 49... Nc4 {[%clk 0:00:02.7]} 50. bxc4 {[%clk 0:00:06.9]} 50... b4
{[%clk 0:00:02.4]} 51. Bc8# {[%clk 0:00:05.7]} 1-0

[Event "*** SCC Grand Prix: Titled Tuesday Blitz"]
[Site "Chess.com"]
[Date "2020.08.25"]
[Round "3"]
[White "Kassimov_B"]
[Black "ftorodent"]
[Result "0-1"]
[WhiteElo "2413"]
[BlackElo "2686"]
[TimeControl "180+1"]
[EndTime "10:31:07 PDT"]
[Termination "ftorodent won by checkmate"]

1. e4 {[%clk 0:03:00.9]} 1... c5 {[%clk 0:02:59.3]} 2. Nf3 {[%clk 0:03:00.3]}
2... e6 {[%clk 0:02:59.4]} 3. g3 {[%clk 0:03:00.1]} 3... b6 {[%clk 0:02:58.2]}
4. Bg2 {[%clk 0:02:59.8]} 4... Bb7 {[%clk 0:02:57]} 5. d3 {[%clk 0:02:59.7]}
5... d6 {[%clk 0:02:56.7]} 6. O-O {[%clk 0:02:56.5]} 6... Nd7 {[%clk 0:02:56.5]}
7. Nc3 {[%clk 0:02:52.2]} 7... Ngf6 {[%clk 0:02:55.5]} 8. Nh4 {[%clk 0:02:51.6]}
8... Qc7 {[%clk 0:02:45]} 9. f4 {[%clk 0:02:51.3]} 9... Be7 {[%clk 0:02:44.8]}
10. f5 {[%clk 0:02:49.5]} 10... e5 {[%clk 0:02:39.9]} 11. Nf3 {[%clk 0:02:42.8]}
11... O-O {[%clk 0:02:35.5]} 12. h3 {[%clk 0:02:42.4]} 12... d5 {[%clk
0:02:30.8]} 13. exd5 {[%clk 0:02:22.9]} 13... Nxd5 {[%clk 0:02:30.7]} 14. Nxd5
{[%clk 0:02:21.3]} 14... Bxd5 {[%clk 0:02:29.6]} 15. c4 {[%clk 0:02:21.8]} 15...
Bb7 {[%clk 0:02:11.2]} 16. Nd2 {[%clk 0:02:21.5]} 16... e4 {[%clk 0:02:01.3]}
17. Nxe4 {[%clk 0:02:15.3]} 17... Bxe4 {[%clk 0:01:52.6]} 18. dxe4 {[%clk
0:02:11.2]} 18... Rad8 {[%clk 0:01:47.7]} 19. Bf4 {[%clk 0:02:05.6]} 19... Ne5
{[%clk 0:01:47.5]} 20. Qe2 {[%clk 0:02:05.4]} 20... Rd4 {[%clk 0:01:42.3]} 21.
Rad1 {[%clk 0:02:02.6]} 21... Rfd8 {[%clk 0:01:40.2]} 22. b3 {[%clk 0:02:00.4]}
22... Bf6 {[%clk 0:01:37.5]} 23. Be3 {[%clk 0:01:52.7]} 23... R4d6 {[%clk
0:01:23.7]} 24. Rd5 {[%clk 0:01:51.4]} 24... Nc6 {[%clk 0:01:22.4]} 25. Bf4
{[%clk 0:01:50.6]} 25... Qe7 {[%clk 0:01:05.5]} 26. Bxd6 {[%clk 0:01:39.6]}
26... Rxd6 {[%clk 0:01:05.3]} 27. Rfd1 {[%clk 0:01:23.5]} 27... Nd4 {[%clk
0:01:00.8]} 28. Qf2 {[%clk 0:01:18.9]} 28... Be5 {[%clk 0:01:00.1]} 29. Rxe5
{[%clk 0:01:12]} 29... Qxe5 {[%clk 0:00:59]} 30. Kh1 {[%clk 0:01:07.8]} 30... h6
{[%clk 0:00:53.9]} 31. Qf4 {[%clk 0:01:07.5]} 31... f6 {[%clk 0:00:48.7]} 32.
Qxe5 {[%clk 0:01:07.5]} 32... fxe5 {[%clk 0:00:49]} 33. g4 {[%clk 0:01:04.3]}
33... Kf7 {[%clk 0:00:48.8]} 34. h4 {[%clk 0:01:03.3]} 34... Kf6 {[%clk
0:00:49.1]} 35. Kh2 {[%clk 0:00:57.7]} 35... Rd8 {[%clk 0:00:47.7]} 36. Rd3
{[%clk 0:00:48.1]} 36... a6 {[%clk 0:00:46]} 37. Bf1 {[%clk 0:00:44.3]} 37... b5
{[%clk 0:00:44.3]} 38. cxb5 {[%clk 0:00:42.2]} 38... axb5 {[%clk 0:00:43.9]} 39.
Rc3 {[%clk 0:00:40]} 39... Ra8 {[%clk 0:00:34.8]} 40. Rxc5 {[%clk 0:00:32.9]}
40... Rxa2+ {[%clk 0:00:34.5]} 41. Kg3 {[%clk 0:00:33.1]} 41... Rb2 {[%clk
0:00:35.1]} 42. g5+ {[%clk 0:00:28.1]} 42... hxg5 {[%clk 0:00:33.6]} 43. hxg5+
{[%clk 0:00:29]} 43... Kxg5 {[%clk 0:00:33.8]} 44. Rxe5 {[%clk 0:00:29.7]} 44...
Rxb3+ {[%clk 0:00:34.1]} 45. Kg2 {[%clk 0:00:24.9]} 45... Kf4 {[%clk 0:00:32.8]}
46. Re7 {[%clk 0:00:24.6]} 46... Rb2+ {[%clk 0:00:31.1]} 47. Kh3 {[%clk
0:00:16.1]} 47... Nf3 {[%clk 0:00:22.9]} 48. Bg2 {[%clk 0:00:16.2]} 48... Ng5+
{[%clk 0:00:19.1]} 49. Kh2 {[%clk 0:00:16.4]} 49... b4 {[%clk 0:00:17.5]} 50.
Rxg7 {[%clk 0:00:14.9]} 50... Nxe4 {[%clk 0:00:16.8]} 51. Kh3 {[%clk 0:00:08.7]}
51... Ng5+ {[%clk 0:00:14.5]} 52. Kh2 {[%clk 0:00:07.2]} 52... Kxf5 {[%clk
0:00:14.2]} 53. Rb7 {[%clk 0:00:06.8]} 53... Kg4 {[%clk 0:00:12.7]} 54. Kg1
{[%clk 0:00:05.6]} 54... Kg3 {[%clk 0:00:12.8]} 55. Bd5 {[%clk 0:00:05.1]} 55...
Rb1# {[%clk 0:00:11.7]} 0-1